[Event "Mitropa Cup Women 2022"]
[Site "Corte"]
[Date "2022.05.06"]
[Round "7.3"]
[White "Benmesbah, Natacha"]
[Black "Radikovic, Anamarija"]
[Result "1-0"]
[ECO "B51"]
[WhiteElo "2251"]
[BlackElo "2133"]
[Annotator "TA"]
[PlyCount "83"]
[EventDate "2022.04.30"]
[EventType "team-tourn"]
[EventCountry "FRA"]
[SourceTitle "playchess.com"]
[Source "ChessBase"]
[SourceQuality "1"]
[WhiteTeam "France"]
[BlackTeam "Croatia"]
[WhiteTeamCountry "FRA"]
[BlackTeamCountry "CRO"]
[TimeControl "40/5400+30:1800+30"]

{[%evp 10,83,18,5,25,20,31,27,27,25,18,12,45,13,26,20,26,25,24,0,0,0,50,50,70,58,58,53,56,56,54,57,54,54,66,66,66,66,70,66,66,34,31,0,27,20,29,28,27,27,42,40,78,66,149,142,303,198,175,174,279,274,271,264,419,415,1391,1837,1877,1392,1579,1425,1406,1260,808,717]} 1. e4 {[%emt 0:00:02]} c5 {[%emt 0:00:03]} 2. Nf3 {[%emt 0:00:04]} d6 {[%emt 0:00:05]} 3. Bb5+ {[%emt 0:00:02]} Nd7 {[%emt 0:00:05]} 4. d4 {[%emt 0:02:35]} cxd4 {[%emt 0:00:08]} 5. Qxd4 {[%emt 0:00:04]} a6 {[%emt 0:00:54]} 6. Bxd7+ {[%emt 0:01:03]} Qxd7 {[%emt 0:00:06] B51: Sicilian: Moscow Variation (3 Bb5+) without 3...Bd7.} 7. O-O $1 {[%emt 0:04:53]} e5 {[%emt 0:00:10]} 8. Qd3 {[%emt 0:00:40]} Qc6 {[%emt 0:02:13] White has an edge.} 9. c4 Be6 {[%emt 0:02:52]} 10. b3 {[%emt 0:02:58]} Rc8 {[%emt 0:09:41]} (10... b5 $5 {[%cal Rb5c4]}) 11. Bb2 {[%emt 0:03:16]} Nf6 {[%emt 0:01:17]} 12. Nc3 {[%emt 0:00:07]} Be7 {[%emt 0:02:20] [#]} 13. Rac1 $146 {[%emt 0:02:27]} ({Predecessor:} 13. Rad1 O-O 14. Ng5 Bg4 15. Nd5 Bd8 16. Nxf6+ Bxf6 17. Nf3 Be7 18. Ba3 Rcd8 19. Qe3 {1-0 (79) Sivarajasingam,V (1668)-Ehsandar,P (1955) Bridgend 2017}) 13... O-O {[%emt 0:03:37]} 14. Nd5 {[%emt 0:06:14]} Bxd5 {[%emt 0:01:12]} 15. cxd5 {[%emt 0:00:23]} Qb6 {[%emt 0:01:08]} (15... Qb5 $11 16. Qe3 Qa5) 16. Nd2 $14 {[%emt 0:02:53][%cal Bf3d2,Bd2c4,Bc4a3,Ba3b5][%mdl 32]} Qa7 {[%emt 0:11:29]} 17. Nc4 {[%emt 0:01:00]} Nd7 {[%emt 0:11:34]} 18. Ba3 {[%emt 0:07:47]} Nc5 {[%emt 0:00:06]} 19. Qe3 {[%emt 0:00:20]} a5 {[%emt 0:07:41]} 20. Bxc5 {[%emt 0:11:59]} Rxc5 {[%emt 0:07:32]} 21. a4 {[%emt 0:03:50]} Qa6 {[%emt 0:05:06]} 22. Na3 {[%emt 0:06:14] Rxc5 is the strong threat.} Rfc8 {[%emt 0:02:27]} 23. Nb5 {[%emt 0:00:38]} h6 {[%emt 0:02:23]} 24. Rxc5 {[%emt 0:01:04] White is more active.} Rxc5 {[%emt 0:00:08]} 25. Qh3 {[%emt 0:00:13]} Qb6 {[%emt 0:05:04]} 26. Na3 {[%emt 0:06:51]} Rc7 {[%emt 0:04:13]} (26... Qb4 $5 {[%cal Rb4a3]} 27. Qd7 (27. Nc4 b5 $17) 27... Qxa3 28. Qxe7 Rc1 29. Qxb7 Rxf1+ 30. Kxf1 Qc1+ 31. Ke2 Qc2+ 32. Ke3 Qc3+ 33. Ke2 Qc2+ 34. Ke3 Qc3+ 35. Ke2 Qc2+ $11) 27. Nc4 {[%emt 0:01:15]} Qb4 {[%emt 0:01:03]} 28. Qe3 {[%emt 0:01:58]} Kh7 {[%emt 0:05:26]} 29. g3 {[%emt 0:06:48]} Bd8 {[%emt 0:08:38]} 30. Kg2 {[%emt 0:02:16]} f6 {[%emt 0:03:20]} 31. h4 {[%emt 0:01:57]} b5 {[%emt 0:01:14]} (31... h5 $14) 32. axb5 $16 {[%emt 0:03:37]} Rb7 $2 {[%emt 0:00:04] This move loses the game for Black.} (32... a4 $16) 33. Rc1 {[%emt 0:10:33]} Rxb5 {[%emt 0:00:22]} 34. Qf3 {[%emt 0:00:09] [#] And now Qf5+ would win.} Rb8 {[%emt 0:01:55]} (34... Rc5 $142 35. Ra1 Kh8) 35. Qf5+ $18 {[%emt 0:00:50]} Kh8 {[%emt 0:00:06]} 36. Qd7 {[%emt 0:00:51]} Bb6 {[%emt 0:01:28]} (36... Qb7 $142 37. Qxb7 (37. Qxd6 Qxb3 38. Qe6 Qb7 $18) 37... Rxb7 38. Nxd6 Rb8) 37. Nxd6 {[%emt 0:04:09]} Qd2 {[%emt 0:00:30]} (37... h5 $142 38. Rc6 Rd8 39. Nf7+ Kg8 40. Nxd8 Qxe4+ 41. Kh2 Qf3) 38. Rc8+ {[%emt 0:00:17] White is clearly winning.} Rxc8 {[%emt 0:00:13]} 39. Qxc8+ {[%emt 0:00:04]} Kh7 {[%emt 0:00:06]} 40. Qf5+ {[%emt 0:00:04]} Kh8 {[%emt 0:01:36]} 41. Nc4 {[%emt 0:31:53]} Qb4 {[%emt 0:30:42]} 42. d6 {[%emt 0:00:00] Weighted Error Value: White=0.07 (flawless) /Black=0.22 (precise)} 1-0

[Event "Mitropa Cup Women 2022"]
[Site "Corte"]
[Date "2022.05.06"]
[Round "7.3"]
[White "Vidic, Teja"]
[Black "Hapala, Elisabeth"]
[Result "1-0"]
[ECO "B48"]
[WhiteElo "2168"]
[BlackElo "2116"]
[Annotator "TA"]
[PlyCount "43"]
[EventDate "2022.04.30"]
[EventType "team-tourn"]
[EventCountry "FRA"]
[SourceTitle "playchess.com"]
[Source "ChessBase"]
[SourceQuality "1"]
[WhiteTeam "Slovenia"]
[BlackTeam "Austria"]
[WhiteTeamCountry "SLO"]
[BlackTeamCountry "AUT"]
[TimeControl "40/5400+30:1800+30"]

{[%evp 11,43,27,48,12,28,27,44,51,52,20,20,27,31,0,353,356,486,511,508,511,510,500,635,398,388,386,400,395,413,404,464,462,464,459]} 1. e4 {[%emt 0:00:03]} c5 {[%emt 0:00:04]} 2. Nf3 {[%emt 0:00:11]} e6 {[%emt 0:00:04]} 3. d4 {[%emt 0:00:06]} cxd4 {[%emt 0:00:05]} 4. Nxd4 {[%emt 0:00:06]} Nc6 {[%emt 0:00:19]} 5. Nc3 {[%emt 0:00:26]} Qc7 {[%emt 0:00:06]} 6. Be3 {[%emt 0:00:11]} a6 {[%emt 0:00:05]} 7. Qf3 {[%emt 0:00:14] B48: Sicilian: Taimanov: 5 Nc3 Qc7 6 Be3 a6 without Be2.} Nf6 {[%emt 0:00:43][%cal Of8a3]} 8. O-O-O {[%emt 0:00:56]} Ne5 {[%emt 0:02:37]} 9. Qg3 {[%emt 0:00:18] White is slightly better.} b5 {[%emt 0:00:24] White must now prevent ...b4.} 10. a3 {[%emt 0:00:09]} (10. f4 $5 {[%cal Rf4e5]} Neg4 11. Bg1 $11) 10... Bb7 {[%emt 0:01:22] [#]} 11. Bxb5 $1 {[%emt 0:00:25][%cal Oh1e1] Strongly threatening Rhe1!} Rc8 $1 {[%emt 0:00:56]} (11... axb5 12. Ndxb5 Qb8 13. Bb6 $16) (11... Nxe4 12. Nxe4 Bxe4 13. Bxd7+ $1 Qxd7 14. Qxe5 $16) 12. Ba4 {[%emt 0:00:49] [#]} ({Much worse is} 12. Bf4 {[#]} Nh5 $1 13. Nxe6 (13. Bxe5 $2 Nxg3 14. Bxc7 Nxh1 $19) 13... fxe6 14. Bxe5 Nxg3 $17) 12... Qa5 $146 {[%emt 0:17:08][%mdl 8192]} (12... Nxe4 $11 {and Black stays safe.} 13. Nxe4 Bxe4) ({Predecessor:} 12... Nxe4 13. Nxe4 Bxe4 14. Bf4 Qa5 15. Bxe5 Qxa4 16. Rd2 f6 17. Bd6 Kf7 18. Re1 Bg6 {1-0 (66) Vachier Lagrave,M (2778)-Harikrishna,P (2729) Germany 2019}) 13. Nb3 $18 {[%emt 0:23:10]} Nxe4 {[%emt 0:24:41] And now ...Qxc3 would win.} 14. Nxa5 {[%emt 0:02:29]} Nxg3 {[%emt 0:00:02]} 15. hxg3 {[%emt 0:07:56]} Bxg2 {[%emt 0:02:21]} 16. Rhe1 {[%emt 0:02:02]} Bxa3 {[%emt 0:01:57]} 17. bxa3 {[%emt 0:05:23]} Rxc3 {[%emt 0:00:03]} 18. Kb2 Rc8 {[%emt 0:00:53]} 19. Bf4 {[%emt 0:11:08]} Nc6 {[%emt 0:02:16]} 20. Nc4 {[%emt 0:02:57]} Ke7 {[%emt 0:02:46]} 21. Kc1 {[%emt 0:10:58]} Kf6 {[%emt 0:24:49]} 22. Nb6 {[%emt 0:03:39] Weighted Error Value: White=0.20 (precise) /Black=0.59} ({Much less strong is} 22. Rxd7 Rhd8 23. Red1 Bf3 24. Rxd8 Nxd8 $18) 1-0

[Event "Mitropa Cup Women 2022"]
[Site "Corte"]
[Date "2022.05.06"]
[Round "7.3"]
[White "Butenandt, Svenja"]
[Black "Sankova, Stella"]
[Result "1/2-1/2"]
[ECO "E46"]
[WhiteElo "2086"]
[BlackElo "2055"]
[Annotator "TA"]
[PlyCount "78"]
[EventDate "2022.04.30"]
[EventType "team-tourn"]
[EventCountry "FRA"]
[SourceTitle "playchess.com"]
[Source "ChessBase"]
[SourceQuality "1"]
[WhiteTeam "Germany"]
[BlackTeam "Slovakia"]
[WhiteTeamCountry "GER"]
[BlackTeamCountry "SVK"]
[TimeControl "40/5400+30:1800+30"]

{[%evp 12,78,-8,-5,20,20,20,21,18,21,23,-13,0,-12,0,-22,-10,-60,-67,-66,-65,-66,-70,-71,-84,-72,-70,-90,-87,-83,-60,-90,-26,-33,-6,-17,0,0,25,-2,0,-8,-8,-8,-8,-8,-20,-43,-19,-24,0,0,0,0,0,0,0,0,0,0,8,0,0,-8,-8,-8,-8,-8,0]} 1. d4 {[%emt 0:00:01]} Nf6 {[%emt 0:00:05]} 2. c4 {[%emt 0:00:04]} e6 {[%emt 0:00:02]} 3. Nc3 {[%emt 0:00:04]} Bb4 {[%emt 0:00:04]} 4. e3 {[%emt 0:00:04]} O-O {[%emt 0:00:04]} 5. Nge2 {[%emt 0:00:03]} Re8 {[%emt 0:01:25]} 6. a3 {[%emt 0:00:35]} Bf8 {[%emt 0:00:05]} 7. d5 {[%emt 0:01:07]} d6 {[%emt 0:09:39] E46: Nimzo-Indian: Rubinstein: 4 e3 0-0 5 Ne2 without early Bd3.} 8. g3 {[%emt 0:02:24]} exd5 {[%emt 0:01:49]} 9. cxd5 {[%emt 0:00:12]} Bf5 {[%emt 0:04:16]} 10. Bg2 {[%emt 0:04:42]} Nbd7 {[%emt 0:00:49]} 11. f3 {[%emt 0:06:47] [#]} h6 $146 {[%emt 0:05:10]} ({Predecessor:} 11... Nc5 12. e4 Bg6 13. b4 Ncd7 14. O-O a5 15. Be3 Ne5 16. Nf4 axb4 17. axb4 Rxa1 18. Qxa1 {½-½ (65) Villegas,P (2367)-Doluhanova,E (2229) Chess.com INT 2020}) 12. e4 {[%emt 0:07:45]} Bh7 {[%emt 0:00:09]} 13. O-O {[%emt 0:01:12]} c6 $1 {[%emt 0:02:37]} 14. g4 {[%emt 0:18:54]} (14. Be3 $11) 14... cxd5 $15 {[%emt 0:03:16]} 15. Nxd5 {[%emt 0:00:48]} Nxd5 {[%emt 0:00:27]} 16. Qxd5 {[%emt 0:00:05]} Qb6+ {[%emt 0:02:05]} (16... Nb6 {with more complications.} 17. Qxb7 d5 18. Be3 dxe4 19. Rad1 Qc8) 17. Qd4 {[%emt 0:01:15]} d5 {[%emt 0:07:00] [#] Strongly threatening ...Bc5.} 18. Qxb6 {[%emt 0:00:15]} Nxb6 {[%emt 0:00:21]} 19. Nc3 {[%emt 0:00:30]} dxe4 {[%emt 0:05:17]} 20. Nxe4 {[%emt 0:00:17]} Rac8 {[%emt 0:10:13]} 21. Be3 {[%emt 0:08:43]} Rc2 {[%emt 0:05:18]} (21... Nc4 $17 22. Bf2 Nxb2) 22. Rf2 {[%emt 0:03:29]} Rec8 {[%emt 0:04:27]} 23. b4 {[%emt 0:01:41]} Rxf2 {[%emt 0:12:53]} 24. Bxf2 {[%emt 0:00:45]} Nd7 {[%emt 0:06:57] Inhibits Nc5.} 25. Rd1 {[%emt 0:04:21]} ({Of course not} 25. Bxa7 Bxe4 26. fxe4 b6 $17) 25... Ne5 {[%emt 0:03:05]} 26. f4 {[%emt 0:07:57]} Nxg4 {[%emt 0:02:12]} 27. Bxa7 {[%emt 0:00:22]} Ra8 {[%emt 0:01:41]} 28. Bc5 {[%emt 0:00:29]} Rxa3 {[%emt 0:03:26]} 29. h3 {[%emt 0:01:12]} Bxe4 {[%emt 0:00:35]} (29... b6 $5 30. Bxb6 (30. Bxf8 Bxe4 31. Bxe4 Rg3+ 32. Bg2 Ne3 $17) 30... Ne3 31. Bxe3 Bxe4 32. Bxe4 Rxe3 $15) 30. Bxe4 {[%emt 0:02:33]} Bxc5+ {[%emt 0:02:20]} (30... Rxh3 $2 31. Rd8 g6 32. Bxb7 $18) 31. bxc5 {[%emt 0:00:03][%cal Rd1d8][%mdl 4096] [#] Endgame KRB-KRN. The position is equal.} Rg3+ {[%emt 0:00:07]} 32. Kf1 {[%emt 0:00:34][%cal Rd1d8]} Ne3+ {[%emt 0:02:05]} 33. Kf2 {[%emt 0:00:04][%cal Rd1d8]} Nxd1+ {[%emt 0:00:45]} 34. Kxg3 $11 {[%emt 0:00:01] KB-KN} Kf8 {[%emt 0:00:26]} 35. Bxb7 {[%emt 0:01:04] And now c6 would win.} Ke7 {[%emt 0:00:12]} 36. h4 {[%emt 0:11:57]} Nb2 {[%emt 0:00:50]} 37. Be4 {[%emt 0:02:04]} Na4 {[%emt 0:00:56]} 38. c6 {[%emt 0:00:04] c7 is the strong threat.} Nc5 {[%emt 0:00:56]} 39. Bd5 {[%emt 0:02:10]} f5 {[%emt 0:01:17] Weighted Error Value: White=0.11 (very precise) /Black=0.10 (very precise)} 1/2-1/2

[Event "Mitropa Cup Women 2022"]
[Site "Corte"]
[Date "2022.05.06"]
[Round "7.4"]
[White "Vujnovic, Patricija"]
[Black "Leconte, Maria"]
[Result "1-0"]
[ECO "A01"]
[WhiteElo "2108"]
[BlackElo "2211"]
[Annotator "TA"]
[PlyCount "73"]
[EventDate "2022.04.30"]
[EventType "team-tourn"]
[EventCountry "FRA"]
[SourceTitle "playchess.com"]
[Source "ChessBase"]
[SourceQuality "1"]
[WhiteTeam "Croatia"]
[BlackTeam "France"]
[WhiteTeamCountry "CRO"]
[BlackTeamCountry "FRA"]
[TimeControl "40/5400+30:1800+30"]

{[%evp 9,73,14,23,17,30,20,32,32,31,31,57,31,59,32,92,87,77,83,105,101,103,118,125,42,41,52,41,47,37,37,140,165,179,121,447,433,460,450,390,263,363,362,328,365,365,364,337,279,308,289,293,250,568,543,658,655,625,587,747,745,2404,2221,29968,6450,29997,29998]} 1. b3 {[%emt 0:00:01]} d5 {[%emt 0:00:46]} 2. Bb2 {[%emt 0:00:15]} Bg4 {[%emt 0:00:55]} 3. Nf3 {[%emt 0:06:27]} Bxf3 {[%emt 0:00:10]} 4. exf3 {[%emt 0:01:55]} e6 {[%emt 0:00:12]} 5. g3 {[%emt 0:01:42]} Nf6 {[%emt 0:00:31]} 6. Bg2 {[%emt 0:00:27] A06: Réti Opening: 1 Nf3 d5.} g6 {[%emt 0:00:38]} 7. c4 {[%emt 0:09:52] Black must now prevent cxd5.} c6 {[%emt 0:04:20]} 8. O-O {[%emt 0:00:54] [#] White is slightly better.} d4 $146 {[%emt 0:29:41]} ({Predecessor:} 8... Bg7 9. f4 O-O 10. Qc2 Nbd7 11. d4 a5 12. Nd2 Re8 13. a3 Ng4 14. c5 Nh6 {½-½ (14) Wang,T (2336)-Ostrovskiy,A (2401) Charlotte 2021}) 9. d3 {[%emt 0:00:55]} Bg7 {[%emt 0:03:29]} 10. f4 {[%emt 0:03:36]} O-O {[%emt 0:05:50]} 11. Nd2 {[%emt 0:00:28]} Na6 {[%emt 0:18:01]} (11... a5 $14) 12. a3 $16 {[%emt 0:03:16]} Nd7 {[%emt 0:08:43]} 13. b4 {[%emt 0:01:30]} Rc8 {[%emt 0:03:36]} 14. Nb3 {[%emt 0:10:21]} Nb6 {[%emt 0:00:46]} 15. b5 {[%emt 0:07:07]} cxb5 {[%emt 0:06:50]} 16. cxb5 {[%emt 0:02:32]} (16. Bxb7 $16 bxc4 17. Bxa6 (17. Bxc8 Qxc8 18. dxc4 Rd8 $16) 17... cxb3 18. Bxc8 (18. Qxb3 Rb8 $17) 18... Qxc8 19. Rc1 (19. Qxb3 Nd5 $16)) 16... Nc5 $14 {[%emt 0:01:32]} 17. Nxc5 {[%emt 0:01:34]} Rxc5 {[%emt 0:00:04]} 18. a4 {[%emt 0:00:12][%cal Ba3a4,Ba4a5][%mdl 32]} Rc7 {[%emt 0:01:16]} 19. Qb3 {[%emt 0:04:12]} g5 {[%emt 0:02:44] [#]} ({Black should try} 19... h5 $14) 20. a5 $1 $16 {[%emt 0:07:49]} Nd5 {[%emt 0:00:27]} 21. f5 {[%emt 0:01:05]} ({Better is} 21. Bxd5 $18 Qxd5 22. Qxd5 exd5 23. Rfc1 (23. fxg5 Rc2 $16) 23... Rxc1+ 24. Rxc1) 21... Rc3 $2 {[%emt 0:02:05][%mdl 8192] This costs Black the game.} 22. Bxc3 $18 {[%emt 0:00:37]} dxc3 {[%emt 0:00:02]} 23. fxe6 {[%emt 0:03:00]} fxe6 {[%emt 0:00:06]} 24. d4 {[%emt 0:09:37]} Kh8 {[%emt 0:03:28]} 25. Bxd5 {[%emt 0:02:28]} Qxd5 {[%emt 0:00:27]} 26. Qxd5 {[%emt 0:02:08]} ({Less strong is} 26. Qxc3 Bxd4 27. Qb4 Rf7 $16) 26... exd5 {[%emt 0:00:01][%mdl 4096] Endgame KRR-KRB} 27. Rfd1 {[%emt 0:14:02]} Rc8 {[%emt 0:00:08]} 28. Rac1 {[%emt 0:02:54] [#] And now Rd3 would win.} Bf8 {[%emt 0:00:52]} 29. Rc2 {[%emt 0:01:47]} Bb4 {[%emt 0:01:25]} 30. a6 {[%emt 0:01:32]} b6 {[%emt 0:02:26]} (30... bxa6 31. bxa6 Kg7) 31. Kf1 {[%emt 0:00:52]} Ba3 {[%emt 0:00:47]} 32. Ke2 {[%emt 0:00:35]} Bb2 {[%emt 0:00:52]} 33. Kd3 {[%emt 0:00:19]} Rc4 {[%emt 0:00:11]} 34. Re1 {[%emt 0:00:21] aiming for Re7.} Rb4 {[%emt 0:01:09]} 35. Re7 {[%emt 0:00:15]} Rxb5 {[%emt 0:00:27]} 36. Rxa7 {[%emt 0:00:10] White wants to mate with Re2.} Ra5 {[%emt 0:00:16]} 37. Re2 {[%emt 0:00:32] Weighted Error Value: White=0.17 (very precise) /Black=1.01} 1-0

[Event "Mitropa Cup Women 2022"]
[Site "Corte"]
[Date "2022.05.06"]
[Round "7.4"]
[White "Froewis, Annika"]
[Black "Rozman, Monika"]
[Result "1/2-1/2"]
[ECO "D00"]
[WhiteElo "2090"]
[BlackElo "2117"]
[Annotator "TA"]
[PlyCount "114"]
[EventDate "2022.04.30"]
[EventType "team-tourn"]
[EventCountry "FRA"]
[SourceTitle "playchess.com"]
[Source "ChessBase"]
[SourceQuality "1"]
[WhiteTeam "Austria"]
[BlackTeam "Slovenia"]
[WhiteTeamCountry "AUT"]
[BlackTeamCountry "SLO"]
[TimeControl "40/5400+30:1800+30"]

{[%evp 9,114,-11,20,16,34,42,47,25,17,31,22,25,36,23,54,44,67,75,64,43,44,0,64,80,86,94,89,90,79,80,127,124,113,104,124,115,129,122,133,89,93,68,78,81,93,72,171,84,82,89,80,81,92,1,16,27,72,83,120,37,35,34,39,34,51,38,111,92,491,77,167,90,130,0,0,0,0,-7,-20,-48,-48,-48,-50,-49,-49,-49,-49,-49,-47,-54,-41,-39,-39,-39,-37,-51,-51,-52,-48,-52,0,-45,0,-51,-51,-48,0]} 1. d4 {[%emt 0:00:08]} d5 {[%emt 0:00:15]} 2. Bf4 {[%emt 0:00:15]} Nf6 {[%emt 0:00:04]} 3. e3 {[%emt 0:00:15]} c5 {[%emt 0:01:10]} 4. c3 {[%emt 0:01:09]} Nc6 {[%emt 0:02:09]} 5. Nd2 {[%emt 0:00:30]} Qb6 {[%emt 0:01:05]} 6. Qb3 {[%emt 0:01:09] D00: 1 d4 d5: Unusual lines.} c4 {[%emt 0:01:20]} 7. Qc2 {[%emt 0:00:28]} g6 {[%emt 0:00:55]} 8. e4 $1 {[%emt 0:05:04] Prevents Bf5. White is slightly better.} Nxe4 {[%emt 0:04:41]} 9. Nxe4 {[%emt 0:02:28]} dxe4 {[%emt 0:01:42]} 10. Bxc4 {[%emt 0:01:34][%cal Bf1c4,Bc4d5,Bd5f7][%mdl 32]} Bg7 {[%emt 0:01:14]} 11. Ne2 {[%emt 0:07:56]} Bf5 {[%emt 0:03:47]} 12. Be3 {[%emt 0:08:42]} Qc7 {[%emt 0:00:53] [#]} 13. Bd5 $146 {[%emt 0:08:24]} ({Predecessor:} 13. O-O O-O 14. Rac1 Rac8 15. a3 Ne5 16. dxe5 Qxc4 17. Ng3 Bxe5 18. Nxf5 gxf5 19. Bxa7 {0-1 (37) Yurtseven,M (2391)-Remizov,Y (2403) Chess.com INT 2020}) 13... Nb4 {[%emt 0:11:18]} 14. Qa4+ {[%emt 0:12:56]} (14. Bxf7+ $5 Kxf7 15. Qb3+ Be6 16. Qxb4 $14) 14... Nc6 {[%emt 0:00:12][%cal Bb4c6,Bc6b4,Bb4d3][%mdl 32]} 15. Qc2 {[%emt 0:10:16]} Nb4 $1 {[%emt 0:05:05] [#]} 16. Bxf7+ $1 {[%emt 0:02:11]} Kf8 {[%emt 0:05:28]} (16... Kxf7 17. Qb3+) 17. Qb3 {[%emt 0:00:08]} Nd3+ {[%emt 0:00:19]} 18. Kf1 {[%emt 0:00:37]} Rd8 {[%emt 0:06:55]} 19. Be6 {[%emt 0:12:07]} Bxe6 {[%emt 0:13:12]} (19... Qc6 $142 20. Bxf5 gxf5) 20. Qxe6 $16 {[%emt 0:00:03]} Nxb2 {[%emt 0:00:52]} 21. Qxe4 {[%emt 0:02:12]} Nc4 {[%emt 0:01:45]} 22. h4 {[%emt 0:10:09]} Qc6 {[%emt 0:08:37]} 23. Qxc6 {[%emt 0:01:42]} bxc6 {[%emt 0:00:01]} 24. Rb1 {[%emt 0:00:56]} Kf7 {[%emt 0:00:30]} 25. Bf4 {[%emt 0:02:31] Prevents Rb8.} Rd7 {[%emt 0:04:57][%cal Oc6c5]} 26. Rh3 {[%emt 0:04:01]} Rhd8 {[%emt 0:00:26][%cal Oc6c5]} 27. g4 {[%emt 0:00:50]} e5 {[%emt 0:05:42] [#]} (27... a5 $16) 28. dxe5 {[%emt 0:02:53]} (28. Rb4 $1 $18 {and White stays clearly on top.}) 28... Rd1+ {[%emt 0:03:33]} 29. Rxd1 {[%emt 0:00:04]} Rxd1+ {[%emt 0:00:07]} 30. Kg2 {[%emt 0:00:03]} Nxe5 {[%emt 0:06:19]} 31. Nd4 {[%emt 0:01:58]} (31. Bxe5 $16 Bxe5 32. Rf3+ Ke6 33. Re3) 31... Nd3 {[%emt 0:00:46]} 32. Be3 {[%emt 0:01:25]} Ne1+ {[%emt 0:00:46]} 33. Kf1 {[%emt 0:01:22]} Ra1 {[%emt 0:02:55]} 34. Ke2 {[%emt 0:00:28]} ({Don't take} 34. Nxc6 Nf3+ 35. Kg2 Ne1+ 36. Kh2 Bf8) ({White should try} 34. Nb3 $16 Rb1 35. Ke2 (35. Bxa7 $2 Nd3+ 36. Kg2 Nf4+ 37. Kh2 Nxh3 $19)) 34... Ng2 $14 {[%emt 0:01:25]} 35. Nxc6 {[%emt 0:00:30]} Rxa2+ 36. Kd3 {[%emt 0:00:34]} Ne1+ {[%emt 0:05:17]} 37. Kc4 {[%emt 0:00:28]} a5 {[%emt 0:00:04]} ({Better is} 37... Bxc3 $14 38. Nd8+ (38. Kxc3 Rc2+ 39. Kb3 Rxc6 $16) (38. Bxa7 Bf6 $16) 38... Ke8) 38. Bb6 {[%emt 0:00:33]} a4 $2 {[%emt 0:01:00][%mdl 8192]} (38... Rb2 $16 {is a better chance.}) 39. g5 $2 {[%emt 0:00:29]} (39. Re3 $18 {is more deadly.} Bxc3 40. Rxc3) 39... Nc2 {[%emt 0:01:18]} (39... Re2 $16 {was called for.}) 40. Bc5 {[%emt 0:00:27]} (40. Rf3+ $18 Ke8 41. Bc5) 40... Rb2 {[%emt 0:01:03] [#] ...a3 is the strong threat.} 41. Rd3 {[%emt 0:12:18]} (41. Rf3+ $1 $16 Ke8 42. Nd4) 41... a3 $1 $11 {[%emt 0:03:44] Strongly threatening ...a2.} 42. Rd7+ {[%emt 0:03:30]} Ke6 $1 {[%emt 0:06:22]} 43. Re7+ {[%emt 0:10:48]} Kf5 {[%emt 0:00:05] White must now prevent ...a2.} 44. Bxa3 {[%emt 0:03:08]} Nxa3+ {[%emt 0:00:09][%mdl 64] Discovered Attack} 45. Kd3 {[%emt 0:00:16] [#]} Rb6 $1 {[%emt 0:03:46]} 46. Rxg7 {[%emt 0:02:32] And now Nd4+ would win.} Rxc6 {[%emt 0:00:06]} 47. Rxh7 $15 {[%emt 0:00:19][%mdl 4096] Endgame KRN-KR} Rd6+ {[%emt 0:00:29]} 48. Ke2 {[%emt 0:00:40]} Nc4 {[%emt 0:03:21]} 49. h5 {[%emt 0:00:49]} Kxg5 {[%emt 0:01:36]} 50. hxg6 {[%emt 0:00:06]} Kxg6 {[%emt 0:00:06]} 51. Rc7 {[%emt 0:00:28]} Ne5 {[%emt 0:00:36]} 52. Ke3 {[%emt 0:00:39]} Kf5 {[%emt 0:00:23]} 53. Rc5 {[%emt 0:00:22]} Rd3+ {[%emt 0:01:35]} 54. Ke2 {[%emt 0:00:07][%cal Oc5e5] Threatening mate with Rxe5+!} Rd6 {[%emt 0:00:05]} 55. Ke3 $1 {[%emt 0:00:23]} Rd3+ {[%emt 0:00:19]} 56. Ke2 {[%emt 0:00:06][%cal Oc5e5] Rxe5+! would kill now.} Rh3 {[%emt 0:02:07]} 57. Kd2 {[%emt 0:01:27]} Rd3+ {[%emt 0:02:10] Weighted Error Value: White=0.28 (precise) /Black=0.29 (precise)} (57... Kf4 $15 {deserves consideration.}) 1/2-1/2